bitfinex/quotes_ETHUSD_20251217
["timestamp","ask_amount","ask_price","bid_price","bid_amount"]
[1765996201109,3.992,2853.1,2852.7,0.03144434]
[1765996203107,0.001,2853.2,2852.9,0.03144434]
[1765996203317,0.001,2853.2,2853.1,0.43694834]
[1765996203534,0.001,2853.2,2853.1,0.99594834]
[1765996205205,0.001,2853.2,2853.1,4.50090785]
[1765996205413,0.001,2853.2,2853.1,5.30465015]
[1765996205735,0.001,2853.2,2853.1,9.86804938]
[1765996206043,0.001,2853.6,2853.2,0.405504]
[1765996206249,0.001,2853.6,2853.5,0.43694834]
[1765996206413,0.001,2853.6,2853.5,0.99594834]
[1765996207240,0.001,2853.6,2853.5,4.50041653]
[1765996207542,0.001,2853.6,2853.5,5.34735468]
[1765996208109,0.001,2853.6,2853.5,4.78835468]
[1765996208314,0.001,2853.6,2853.5,5.34735468]
[1765996209241,0.001,2853.6,2853.5,0.03144434]
[1765996209627,0.001,2853.6,2853.5,3.53591253]
[1765996209940,0.001,2853.6,2853.5,0.03144434]
[1765996210108,0.001,2853.6,2853.5,3.53591253]
[1765996210733,0.001,2853.6,2853.5,0.03144434]
[1765996211314,0.001,2853.6,2853.5,3.53591253]
[1765996211815,0.001,2853.6,2853.5,0.03144434]
[1765996213138,0.001,2853.6,2853.5,3.53591253]
[1765996213340,0.001,2853.6,2853.5,0.03144434]
[1765996215316,4.2095,2853.6,2853.3,0.03144434]
[1765996215517,4.2095,2853.6,2853.1,0.03344434]
[1765996215518,2.66406093,2853.6,2853.1,0.03344434]
[1765996215718,1.8927,2853.6,2853.3,0.03144434]
[1765996215947,0.001,2853.6,2853.3,0.03144434]
[1765996216340,0.001,2853.6,2853.1,0.03344434]
[1765996216341,3.5053957,2853.6,2853.1,0.03344434]
[1765996216558,1.8917,2853.4,2853.1,0.03344434]
[1765996216739,1.8917,2853.4,2852.4,0.002]
[1765996216740,1.8917,2853.2,2852.4,0.002]
[1765996216916,0.18917,2853.3,2852.4,0.002]
[1765996216917,0.46438023,2852.9,2852.4,0.002]
[1765996217247,7.01090194,2852.7,2852.4,0.002]
[1765996217448,4.2085,2852.5,2852.1,0.002]
[1765996217752,0.46728802,2852.4,2852.1,0.002]
[1765996217924,1.8917,2852.4,2852.1,0.002]
[1765996219233,1.8917,2852.3,2852.1,0.002]
[1765996219549,3.50581966,2852.4,2852.1,0.002]
[1765996219732,4.2085,2852.3,2852.1,0.002]
[1765996220129,4.7665,2852.3,2852.1,0.002]
[1765996220738,4.05260513,2852.3,2852.1,0.002]
[1765996220947,4.05260513,2852.3,2852.0,0.002]
[1765996220948,3.50618842,2852.1,2852.0,0.002]
[1765996221158,1.73580513,2852.3,2852.0,0.002]
[1765996221367,4.06395312,2852.3,2852.0,0.002]
[1765996221720,5.95565312,2852.3,2852.0,0.002]
[1765996221962,11.77840624,2852.3,2852.0,0.002]
[1765996222128,4.2085,2852.2,2852.0,0.002]
[1765996222326,7.56990624,2852.3,2851.5,0.002]
[1765996222327,4.2085,2852.1,2851.5,0.002]
[1765996223061,3.50631136,2852.0,2851.5,0.002]
[1765996223374,5.82302114,2852.1,2851.5,0.002]
[1765996223662,3.50622114,2852.1,2851.5,0.002]
[1765996223862,0.558,2852.3,2851.5,0.002]
[1765996223863,3.50597163,2852.3,2851.7,0.004]
[1765996224067,3.50597163,2852.3,2851.8,0.03144434]
[1765996224393,11.22044326,2852.3,2851.6,0.03144434]
[1765996224535,2.40022117,2852.2,2851.6,0.03144434]
[1765996224869,1.8917,2852.2,2851.6,0.03144434]
[1765996225083,3.50618842,2852.1,2851.6,0.03144434]
[1765996225229,5.39788842,2852.1,2851.6,0.03144434]
[1765996226195,1.8917,2852.1,2851.6,3.53823489]
[1765996226491,1.8917,2852.1,2851.6,0.03144434]
[1765996226986,1.8917,2852.1,2851.6,3.53823718]
[1765996227387,6.28718963,2852.3,2851.6,3.53823718]
[1765996228899,0.46438023,2852.1,2851.5,0.002]
[1765996229065,4.2085,2851.9,2851.5,0.002]
[1765996229434,8.17894572,2852.2,2851.5,0.002]
[1765996229564,0.559,2852.4,2851.6,0.03144434]
[1765996229760,7.71426123,2852.5,2851.6,0.03144434]
[1765996229960,0.559,2852.5,2851.6,0.03144434]
[1765996230182,0.559,2852.5,2852.0,0.03144434]
[1765996230555,1.8917,2852.8,2852.2,0.03144434]
[1765996230768,3.69390465,2853.3,2852.2,0.03144434]
[1765996230769,0.559,2853.0,2852.2,0.03144434]
[1765996231107,1.7606064,2853.9,2852.9,0.03144434]
[1765996231108,7.00916442,2853.9,2852.9,0.03144434]
[1765996231264,1.8917,2853.8,2852.9,0.03144434]
[1765996231471,0.56,2853.9,2852.9,0.03144434]
[1765996231996,0.001,2853.9,2853.0,0.405504]
[1765996232200,2.3168,2855.0,2853.2,0.405504]
[1765996232408,5.39529397,2855.1,2853.5,0.405504]
[1765996232409,1.8927,2855.1,2853.5,0.405504]
[1765996232562,1.8927,2855.1,2853.7,0.405504]
[1765996232762,1.8927,2855.1,2853.9,0.405504]
[1765996232998,0.001,2855.1,2853.9,0.405504]
[1765996233176,7.71200429,2855.1,2854.0,7.00770846]
[1765996233387,1.17734788,2855.0,2854.4,0.03144434]
[1765996233772,1.17734788,2855.0,2854.1,0.74132125]
[1765996233773,1.17734788,2855.0,2854.1,0.03144434]
[1765996234098,1.64172811,2855.0,2853.8,0.59044434]
[1765996234405,0.46438023,2854.7,2853.8,0.03144434]
[1765996234703,2.35608023,2854.5,2853.8,0.03144434]
[1765996234995,0.46728802,2854.4,2853.8,3.53552651]
[1765996235209,3.97065287,2854.4,2853.8,0.03144434]
[1765996235772,0.46728802,2854.4,2854.0,0.03144434]
[1765996236274,1.8917,2854.5,2854.0,0.03144434]
[1765996236495,2.3168,2854.6,2854.0,0.03144434]
[1765996236702,0.46438023,2854.9,2854.2,0.03144434]
[1765996236872,4.68000584,2855.0,2854.4,0.03144434]
[1765996237069,0.88895295,2854.9,2854.4,0.03144434]
[1765996237899,0.88895295,2854.9,2854.4,3.53479966]
[1765996238305,0.001,2855.1,2854.7,0.03144434]
[1765996238506,0.001,2855.3,2854.7,0.03144434]
[1765996239002,0.001,2855.4,2854.7,0.03144434]
[1765996239178,3.50197552,2855.6,2854.7,0.03144434]
[1765996239499,0.75616543,2855.6,2854.8,7.0057447]
[1765996239798,0.001,2855.9,2855.1,0.03144434]
[1765996240790,0.46538023,2855.9,2855.4,0.03144434]
[1765996240998,3.50252316,2855.9,2855.4,0.03144434]
[1765996241306,3.50252316,2855.9,2854.9,0.03144434]
[1765996241307,1.8474,2855.5,2854.9,0.03144434]
[1765996241707,4.131,2855.5,2854.9,0.03144434]
[1765996241873,4.59538023,2855.4,2854.9,0.03144434]
[1765996242209,1.8474,2855.3,2854.7,0.03144434]
[1765996242502,4.131,2855.0,2854.6,0.03144434]
[1765996242677,4.131,2855.3,2854.6,0.03144434]
[1765996242880,0.51533802,2855.2,2854.6,0.03144434]
[1765996243205,1.02238023,2855.4,2854.8,0.03144434]
[1765996243376,0.46438023,2855.5,2855.0,0.03144434]
[1765996243904,3.50192743,2855.6,2855.0,0.03144434]
[1765996246508,8.19081772,2855.7,2855.0,3.53406042]
[1765996246807,1.28572459,2855.6,2855.0,0.03144434]
[1765996247110,1.75010482,2855.6,2855.0,0.03144434]
[1765996247401,5.2520385,2855.6,2855.0,0.03144434]
[1765996247575,1.75010482,2855.6,2855.0,3.53403901]
[1765996247771,3.50164577,2855.8,2855.2,0.03144434]
[1765996248003,0.70041901,2855.7,2855.2,0.03144434]
[1765996248221,3.50255944,2855.9,2855.2,0.03144434]
[1765996249219,0.001,2855.9,2855.4,0.03144434]
[1765996249385,0.001,2855.9,2855.4,3.53352599]
[1765996249807,0.001,2855.9,2855.6,0.03144434]
[1765996249989,0.001,2855.9,2855.7,0.963504]
[1765996251383,0.001,2855.9,2855.8,3.966026]
[1765996252188,0.001,2855.9,2855.8,3.99747034]
[1765996253611,0.001,2855.9,2855.8,4.96097434]
[1765996254492,0.001,2855.9,2855.8,0.58944434]
[1765996254692,0.001,2855.9,2855.8,0.03144434]
[1765996254888,0.001,2855.9,2855.4,0.03144434]
[1765996255201,1.8474,2855.8,2855.5,0.558]
[1765996255397,0.4132,2855.7,2855.5,0.558]
[1765996255803,0.001,2855.9,2855.5,0.558]
[1765996256519,0.001,2855.9,2855.5,4.0599865]
[1765996256831,0.001,2855.9,2855.6,0.03144434]
[1765996257595,1.8484,2855.9,2855.5,0.558]
[1765996258236,2.2846,2855.9,2855.2,0.03144434]
[1765996258392,1.8474,2855.6,2855.2,0.03144434]
[1765996258589,0.22846,2855.8,2854.8,0.03144434]
[1765996258894,7.63311078,2855.5,2854.8,3.53424695]
[1765996259197,1.8474,2855.4,2854.8,3.53424695]
[1765996259718,1.8474,2855.4,2854.8,0.03144434]
[1765996259916,1.8474,2855.1,2854.8,0.03144434]
[1765996260319,2.2836,2855.2,2854.8,3.53431324]
[1765996260523,0.4131,2855.2,2854.8,3.53428311]
[1765996260701,1.8474,2855.2,2854.8,0.03144434]
[1765996260902,4.131,2855.0,2854.6,0.58944434]
[1765996261107,4.131,2855.3,2854.6,0.58944434]
[1765996261425,4.131,2855.2,2854.8,3.5343153]
[1765996261827,4.131,2855.2,2854.8,0.03144434]
[1765996262132,0.4131,2855.1,2854.8,0.03144434]
[1765996263326,2.74798023,2855.4,2854.8,3.53430847]
[1765996263528,0.46438023,2855.5,2854.8,3.53430847]
[1765996263705,0.46438023,2855.7,2855.3,0.03144434]
[1765996263903,8.09710139,2855.8,2855.3,0.03144434]
[1765996264127,0.46438023,2855.8,2855.3,0.03144434]
[1765996264429,3.50258527,2855.9,2855.3,0.03144434]
[1765996264430,0.001,2855.9,2855.3,0.03144434]
[1765996264624,0.396684,2855.8,2855.3,0.03144434]
[1765996264830,0.86106423,2855.8,2855.3,0.03144434]
[1765996265326,0.46438023,2855.8,2855.5,0.03144434]
[1765996265634,0.001,2855.9,2855.2,0.03144434]
[1765996265800,0.001,2855.9,2855.7,0.03144434]
[1765996266796,0.001,2855.9,2855.5,3.53343461]
[1765996267001,4.132,2855.9,2855.5,0.58944434]
[1765996267320,1.8474,2855.8,2855.5,0.58944434]
[1765996267528,4.31584,2855.8,2855.5,0.558]
[1765996267915,2.03224,2855.8,2855.5,4.05999321]
[1765996268115,1.8484,2855.9,2855.5,4.05999321]
[1765996268520,0.001,2855.9,2855.6,0.03144434]
[1765996269437,0.001,2855.9,2855.6,3.53329075]
[1765996269938,0.001,2855.9,2855.8,0.03144434]
[1765996270939,0.001,2855.9,2855.6,0.03144434]
[1765996271144,2.1594,2855.4,2854.8,0.002]
[1765996271446,0.26237802,2855.3,2854.8,0.002]
[1765996271619,4.1094,2855.2,2854.8,0.002]
[1765996272216,2.62378023,2855.5,2854.8,0.002]
[1765996272420,4.57378023,2855.5,2854.8,0.002]
[1765996272630,8.07583929,2855.5,2854.8,0.002]
[1765996272838,4.1094,2855.4,2854.8,0.002]
[1765996273039,2.75758393,2855.3,2854.8,0.002]
[1765996273253,4.1094,2855.3,2854.8,0.002]
[1765996273908,8.07575474,2855.6,2854.8,0.002]
[1765996274129,1.95,2855.5,2854.8,0.002]
[1765996274488,0.001,2855.9,2855.3,0.03144434]
[1765996274609,0.46438023,2855.8,2855.3,0.558]
[1765996274811,4.57378023,2855.8,2855.3,0.558]
[1765996275737,1.95,2855.5,2855.3,0.558]
[1765996275943,4.1094,2855.5,2855.1,0.03144434]
[1765996276637,1.95,2855.5,2855.1,3.53392683]
[1765996276836,5.38141347,2855.8,2855.2,3.50230451]
[1765996277541,8.88311272,2855.8,2855.1,3.53392409]
[1765996277718,8.88311272,2855.8,2855.1,0.03144434]
[1765996277920,3.18856556,2855.7,2855.1,0.03144434]
[1765996278110,5.34796556,2855.7,2855.1,0.03144434]
[1765996278512,5.34796556,2855.7,2855.1,3.53392438]
[1765996279016,1.95,2855.8,2855.1,0.03144434]
[1765996279237,1.95,2855.8,2855.1,7.03634722]
[1765996279746,5.45166662,2855.8,2855.1,3.53390416]
[1765996280251,4.1094,2855.6,2854.8,0.002]
[1765996280448,4.1094,2855.4,2854.8,0.002]
[1765996280835,0.45737802,2855.5,2854.8,3.50479747]
[1765996281017,2.1594,2855.3,2854.8,3.50479747]
[1765996281355,2.1594,2855.3,2854.8,3.50482465]
[1765996281533,4.1094,2855.3,2854.8,0.002]
[1765996282115,2.1594,2855.3,2854.8,0.002]
[1765996282315,1.95,2855.2,2854.8,0.002]
[1765996282515,4.1094,2855.2,2854.8,0.002]
[1765996283443,4.1094,2855.1,2854.8,0.002]
[1765996283646,1.95,2854.8,2854.4,0.002]
[1765996283856,1.11139246,2855.1,2854.4,0.002]
[1765996283857,1.95,2854.7,2854.4,0.002]
[1765996284054,1.11139246,2855.1,2854.4,0.002]
[1765996284351,4.1094,2855.0,2854.4,0.03344434]
[1765996285153,4.1094,2855.0,2854.4,0.03144434]
[1765996285356,4.61392345,2855.1,2854.4,0.03144434]
[1765996285357,4.1094,2854.9,2854.4,0.03144434]
[1765996286314,4.1094,2854.9,2854.4,3.53480645]
[1765996286514,1.95,2855.1,2854.4,3.53480645]
[1765996286743,4.1094,2855.0,2854.4,0.03144434]
[1765996286952,4.1094,2855.0,2854.4,3.53678104]
[1765996288140,2.1594,2854.8,2854.4,0.002]
[1765996288350,4.1094,2855.0,2854.4,0.002]
[1765996290968,1.95,2854.9,2854.4,0.002]
[1765996291146,4.1094,2854.8,2854.4,0.002]
[1765996291445,1.95,2854.7,2854.4,0.002]
[1765996293143,4.1094,2854.5,2853.9,0.002]
[1765996293344,2.1594,2854.3,2853.9,0.002]
[1765996293549,4.1094,2854.3,2853.9,0.002]
[1765996293853,4.1094,2854.2,2853.9,0.002]
[1765996294054,1.95,2854.2,2853.9,0.002]
[1765996294258,2.1594,2854.5,2853.9,0.002]
[1765996294561,5.09600409,2854.5,2853.9,0.002]
[1765996294769,5.09600409,2854.5,2853.9,3.50593681]
[1765996295265,8.59927601,2854.5,2853.9,0.002]
[1765996295566,4.1094,2854.3,2853.9,0.002]
[1765996295862,1.45098432,2854.5,2853.9,0.002]
[1765996296026,1.45098432,2854.5,2854.0,0.03144434]
[1765996296231,4.1094,2854.4,2854.0,0.03144434]
[1765996296439,2.1594,2854.8,2854.2,0.03144434]
[1765996296655,2.1594,2854.4,2853.9,0.002]
[1765996296860,0.46438023,2854.8,2853.9,0.56]
[1765996296861,4.1094,2854.2,2853.9,0.56]
[1765996297062,4.52034,2854.2,2853.9,0.56]
[1765996297260,0.46438023,2854.8,2853.6,0.03344434]
[1765996297261,1.95,2854.0,2853.6,0.002]
[1765996297430,4.57378023,2853.9,2853.2,0.002]
[1765996297629,0.558,2853.8,2852.8,0.56]
[1765996297840,0.46438023,2853.5,2852.9,0.03144434]
[1765996298068,1.95,2853.4,2852.9,0.03144434]
[1765996298261,4.1094,2853.3,2852.9,0.03144434]
[1765996299235,2.41438023,2854.0,2853.1,3.5483063]
[1765996299556,0.46438023,2853.9,2853.3,0.03144434]
[1765996299935,4.6674,2854.0,2853.3,0.03144434]
[1765996299936,1.95,2853.8,2853.3,0.03144434]
[1765996300137,2.1594,2854.2,2853.3,0.03144434]
[1765996300340,0.46438023,2854.1,2853.5,0.03144434]
[1765996300743,2.52338023,2854.1,2853.9,0.002]
[1765996300939,0.46438023,2853.9,2853.3,0.03144434]
[1765996301365,3.96839736,2853.9,2853.3,0.03144434]
[1765996301663,2.059,2853.4,2852.8,0.002]
[1765996301860,2.059,2853.3,2853.0,0.03144434]
[1765996302367,2.2015,2853.6,2853.0,0.03144434]
[1765996302368,2.66588023,2853.6,2853.0,0.03144434]
[1765996302550,2.2015,2853.4,2853.0,0.03144434]
[1765996302870,4.2605,2853.4,2853.0,0.03144434]
[1765996304866,3.50439304,2853.6,2853.0,3.53652031]
[1765996304867,0.46438023,2853.6,2853.0,3.53652031]
[1765996305050,1.26747072,2853.6,2853.0,3.53652031]
[1765996305365,2.059,2853.5,2853.0,0.03144434]
[1765996305539,4.2605,2853.4,2853.0,0.03144434]
[1765996306270,4.2605,2852.8,2852.5,0.002]
[1765996306444,2.059,2852.8,2852.5,0.002]
[1765996306646,0.46438023,2853.2,2852.5,3.50768592]
[1765996306954,2.059,2853.1,2852.6,0.03144434]
[1765996307266,0.46438023,2853.2,2852.6,0.03144434]
[1765996307564,4.307494,2853.6,2853.0,0.03144434]
[1765996307765,0.80309049,2853.6,2853.0,0.03144434]
[1765996308067,0.80309049,2853.6,2853.0,0.03344434]
[1765996308068,4.30743595,2853.6,2853.0,0.03344434]
[1765996308269,0.80309049,2853.6,2853.0,0.03344434]
[1765996308476,2.2015,2854.1,2853.2,0.03144434]
[1765996308676,3.50395031,2854.0,2853.2,0.03144434]
[1765996308836,2.059,2853.8,2853.1,0.558]
[1765996309173,7.00790062,2854.0,2853.0,0.03344434]
[1765996309174,2.059,2853.6,2853.0,0.03344434]
[1765996309345,2.48505,2853.6,2853.0,0.002]
[1765996309545,2.059,2853.2,2853.0,0.002]
[1765996310352,4.2605,2853.3,2853.0,0.002]
[1765996313169,2.059,2853.2,2853.0,0.002]
[1765996313340,2.2015,2853.2,2853.0,0.002]
[1765996313536,4.2605,2853.2,2853.0,0.002]
[1765996313736,2.059,2853.4,2853.0,0.002]
[1765996313969,4.2605,2853.4,2853.0,0.002]
[1765996314172,2.059,2853.3,2853.0,0.002]
[1765996315069,4.2605,2853.3,2853.0,0.002]
[1765996315273,2.2015,2853.3,2853.0,0.002]
[1765996315567,4.2605,2853.3,2853.0,0.002]
[1765996315738,3.96890799,2853.5,2853.0,0.002]
[1765996315945,2.059,2853.4,2853.0,0.002]
[1765996316145,4.2605,2853.4,2853.0,0.002]
[1765996316345,7.76520561,2853.4,2853.0,0.002]
[1765996316547,4.2605,2853.3,2853.0,0.002]
[1765996316742,4.67811697,2853.4,2853.0,0.002]
[1765996316948,4.2605,2853.3,2853.0,0.002]
[1765996318049,4.67801506,2853.4,2853.0,0.002]
[1765996318471,4.2605,2853.3,2853.0,0.002]
[1765996318661,2.2015,2853.3,2853.0,0.002]
[1765996318862,2.059,2853.2,2853.0,0.002]
[1765996319274,4.2605,2853.2,2853.0,0.002]
[1765996319985,2.059,2853.2,2853.0,0.002]
[1765996320480,2.059,2853.3,2853.0,0.002]
[1765996320781,5.43391136,2853.4,2853.0,0.002]
[1765996320984,4.67803506,2853.4,2853.0,0.002]
[1765996321147,3.96889318,2853.5,2853.0,0.002]
[1765996321349,2.059,2853.3,2853.0,0.002]
[1765996321642,2.059,2853.2,2852.5,0.002]
[1765996321844,4.2605,2853.2,2852.5,0.002]
[1765996322043,0.46438023,2853.1,2852.5,0.002]
[1765996322271,0.001,2853.3,2852.3,0.58944434]
[1765996322471,4.2605,2852.7,2852.3,0.58944434]
[1765996323174,5.56425703,2852.9,2852.3,0.58944434]
[1765996323374,8.89283331,2852.9,2852.3,4.09536231]
[1765996323573,5.38757628,2852.9,2852.3,4.09536231]
[1765996324274,2.66588023,2853.2,2852.5,0.03144434]
[1765996324675,6.17072223,2853.2,2852.5,3.53706442]
[1765996324881,2.2015,2852.8,2852.1,0.002]
[1765996325054,2.2015,2852.5,2852.1,0.002]
[1765996325379,2.2015,2852.4,2852.1,0.002]
[1765996325549,2.059,2852.2,2851.9,0.002]
[1765996325949,2.94943023,2852.7,2852.0,3.50628455]
[1765996326263,2.94943023,2852.7,2852.1,2.2745]
[1765996326467,0.558,2853.0,2852.2,2.2745]
[1765996326468,2.2015,2853.0,2852.2,2.2745]
[1765996326669,0.46438023,2852.7,2852.2,2.2745]
[1765996326846,2.059,2852.5,2851.9,0.002]
[1765996327048,2.059,2852.1,2851.8,0.002]
[1765996327262,2.2015,2852.3,2851.8,3.50853418]
[1765996327469,2.66588023,2852.6,2851.8,4.26920855]
[1765996327672,2.52338023,2852.7,2851.9,2.30594434]
[1765996327866,2.52338023,2852.7,2852.1,2.2745]
[1765996328685,6.02893656,2852.7,2852.1,2.2745]
[1765996329178,0.46438023,2852.7,2852.1,2.2745]
[1765996329387,3.9698353,2852.7,2852.1,2.56089443]
[1765996329686,5.9086353,2852.7,2852.1,2.59233877]
[1765996329990,0.46438023,2852.8,2852.1,7.33018114]
[1765996330192,0.46438023,2852.8,2852.2,2.2449]
[1765996330820,1.9388,2852.9,2852.3,0.03144434]
[1765996331100,0.558,2853.1,2852.5,2.3141]
[1765996331101,0.46438023,2853.1,2852.5,2.3141]
[1765996334011,3.96941185,2853.1,2852.5,2.3141]
[1765996334499,0.46438023,2853.1,2852.5,5.85121386]
[1765996335468,2.0393,2853.6,2852.9,2.34554434]
[1765996335700,2.0393,2853.6,2852.7,0.03144434]
[1765996335701,2.0393,2853.3,2852.5,2.34554434]
[1765996335875,2.3243,2853.1,2852.1,0.31783877]
[1765996336068,4.3636,2852.9,2852.1,0.58944434]
[1765996336273,2.0393,2852.8,2852.1,0.58944434]
[1765996336501,2.0393,2852.8,2852.1,6.40973082]
[1765996336702,2.0393,2852.6,2852.1,0.03144434]
[1765996336916,2.0393,2852.6,2852.1,2.90354434]
[1765996337121,4.3636,2852.6,2852.1,2.90354434]
[1765996337326,2.0393,2852.6,2852.1,6.40967408]
[1765996337621,2.0393,2852.6,2852.1,2.90354434]
[1765996337988,2.3243,2852.8,2852.1,6.40963638]
[1765996338301,7.86895995,2852.8,2852.1,6.40963638]
[1765996338506,4.3636,2852.8,2852.1,7.05374445]
[1765996338707,7.86894533,2852.8,2852.1,7.05374445]
[1765996339199,2.0403,2853.1,2852.5,2.34554434]
[1765996339601,2.0393,2853.4,2852.8,2.3141]
[1765996339779,2.50368023,2853.4,2852.8,2.3141]
[1765996339977,6.00828714,2853.4,2852.8,2.3141]
[1765996340478,6.00828714,2853.4,2852.8,5.81941347]
[1765996340676,2.3243,2853.5,2852.8,0.9356424]
[1765996340894,2.3243,2853.4,2852.7,3.53680784]
[1765996341100,4.3636,2853.4,2852.7,0.03144434]
[1765996341270,4.3636,2853.4,2852.6,2.3141]
[1765996341271,2.3243,2853.3,2852.6,2.3141]
[1765996341485,2.3243,2852.7,2852.1,0.03144434]
[1765996341699,0.46438023,2853.2,2852.3,0.03144434]
[1765996341700,2.3243,2853.1,2852.3,0.03144434]
[1765996342040,2.0393,2852.9,2852.3,0.03144434]
[1765996343409,2.0393,2852.9,2852.3,3.53731665]
[1765996343812,2.0403,2852.9,2852.3,3.53731665]
[1765996344318,2.0393,2852.7,2852.1,2.34554434]
[1765996344494,2.0393,2852.6,2852.2,3.50595691]
[1765996345018,2.50368023,2853.4,2852.6,2.3141]
[1765996345218,7.86824835,2853.4,2852.7,0.03144434]
[1765996345578,10.51394505,2853.4,2852.5,0.558]
[1765996345781,0.46438023,2853.3,2852.5,0.558]
[1765996345995,1.09783253,2853.2,2852.5,0.558]
[1765996346215,2.3243,2852.9,2852.5,0.558]
[1765996346387,4.3636,2852.9,2852.5,0.558]
[1765996346598,2.0393,2852.9,2852.5,6.40920341]
[1765996346910,0.46438023,2853.3,2852.7,2.34554434]
[1765996347114,2.0393,2853.2,2852.7,0.03144434]
[1765996347296,4.3636,2853.2,2852.7,0.03144434]
[1765996347495,2.0393,2853.1,2852.7,0.03144434]
[1765996348012,5.5442769,2853.1,2852.7,0.03144434]
[1765996348181,4.3636,2853.1,2852.7,0.03144434]
[1765996349012,2.3243,2852.9,2852.1,3.53760016]
[1765996349215,2.3243,2852.9,2851.9,2.34554434]
[1765996349216,1.02238023,2853.0,2851.8,0.002]
[1765996349552,2.50368023,2852.5,2851.8,0.002]
[1765996349811,2.0393,2852.0,2851.8,0.002]
[1765996349983,2.0393,2851.9,2851.8,0.002]
[1765996350188,2.0393,2852.0,2851.8,0.002]
[1765996350897,4.3636,2852.0,2851.8,0.002]
[1765996351484,2.0393,2852.0,2851.8,0.002]
[1765996351680,2.0393,2851.9,2851.8,0.002]
[1765996352313,2.3243,2852.0,2851.8,0.002]
[1765996352618,2.0393,2852.0,2851.8,0.002]
[1765996353024,2.0393,2851.8,2851.1,3.36992457]
[1765996353230,2.0393,2851.7,2851.3,3.5385787]
[1765996353450,2.0393,2851.7,2851.3,3.53854857]
[1765996353597,2.3243,2851.7,2851.3,3.50710423]
[1765996353799,4.3636,2852.0,2851.4,0.03144434]
[1765996354009,4.82798023,2852.3,2851.6,2.34554434]
[1765996354212,4.82798023,2852.3,2851.8,0.03144434]
[1765996354418,3.80265521,2852.4,2851.8,2.34554434]
[1765996354419,0.29680605,2852.4,2851.8,2.34554434]
[1765996354622,2.0393,2852.7,2852.0,0.03144434]
[1765996354922,2.78868023,2852.9,2852.2,2.34554434]
[1765996355626,6.29390655,2852.9,2852.3,0.558]
[1765996355936,2.0393,2852.9,2852.4,2.34554434]
[1765996356223,2.50368023,2852.9,2852.4,2.34554434]
[1765996356624,9.51417907,2852.9,2852.3,0.558]
[1765996356802,4.82798023,2852.8,2852.3,0.558]
[1765996357137,0.46438023,2852.8,2852.3,0.558]
[1765996357300,4.3636,2852.7,2852.3,0.558]
[1765996357822,2.0393,2852.6,2852.3,0.558]
[1765996358023,2.0393,2852.4,2852.3,0.558]
[1765996358528,4.3636,2852.7,2852.3,0.558]
[1765996358827,2.0393,2852.6,2852.3,0.558]
[1765996359208,2.0393,2852.6,2852.3,0.56]
[1765996359923,5.54487697,2852.6,2852.3,0.56]
[1765996360224,2.3243,2852.5,2852.3,0.56]
[1765996360425,2.0393,2852.4,2852.3,0.56]
[1765996361394,2.0393,2852.4,2852.0,0.03144434]
[1765996361598,7.56933118,2852.6,2851.8,0.03144434]
[1765996361820,2.1338,2852.3,2851.8,0.03144434]
[1765996362100,2.1338,2852.5,2851.9,2.1659]
[1765996362396,5.63950424,2852.5,2851.9,2.1659]
[1765996362622,2.1338,2852.3,2851.8,0.03144434]
[1765996362825,2.1338,2852.3,2851.8,3.53798574]
[1765996362826,2.1338,2852.2,2851.8,3.53798574]
[1765996363311,5.63950424,2852.5,2851.8,3.53798574]
[1765996363514,2.1338,2852.4,2851.8,3.53798574]
[1765996364233,2.1338,2852.4,2851.8,7.044543]
[1765996364438,2.1338,2852.4,2851.8,3.53798574]
[1765996364732,2.1338,2852.4,2851.8,5.70388574]
[1765996366734,4.314,2852.3,2851.8,0.03144434]
[1765996367032,2.1338,2852.2,2851.6,0.03144434]
[1765996367204,2.1338,2852.2,2851.8,0.03144434]
[1765996367631,2.1338,2852.2,2851.8,3.53797941]
[1765996367848,2.1802,2852.3,2851.8,5.70387941]
[1765996368004,2.1338,2852.4,2851.8,2.19734434]
[1765996368420,4.314,2852.4,2851.8,5.70387609]
[1765996368642,2.1338,2852.3,2851.8,5.70387609]
[1765996368846,2.1802,2852.3,2851.8,3.53797609]
[1765996369048,2.1338,2852.2,2851.8,3.53797609]
[1765996369249,3.50575587,2852.5,2851.8,3.53797609]
[1765996369250,4.314,2852.5,2851.8,7.04453335]
[1765996369557,4.06363427,2852.6,2851.6,3.53821005]
[1765996369558,2.1338,2852.2,2851.6,3.53821005]
[1765996369730,4.314,2852.2,2851.7,5.67252169]
[1765996369938,2.1338,2852.1,2851.7,5.67252169]
[1765996370238,2.1338,2852.0,2851.6,3.53818166]
[1765996370637,2.1338,2852.0,2851.6,5.70408166]
[1765996371351,0.001,2852.7,2851.9,2.1659]
[1765996371527,0.001,2852.7,2852.4,0.03144434]
[1765996371723,2.1338,2853.0,2852.4,2.19734434]
[1765996371942,2.1338,2853.0,2852.6,2.19734434]
[1765996373060,2.1802,2852.9,2852.4,0.03144434]
[1765996373272,2.1338,2852.8,2852.4,0.03144434]
[1765996373429,2.1338,2852.8,2852.4,2.19734434]
[1765996373931,2.1338,2852.7,2852.4,0.03144434]
[1765996374131,2.1338,2852.6,2852.4,0.03144434]
[1765996375357,4.314,2852.7,2852.4,0.03144434]
[1765996375727,0.001,2853.1,2852.7,2.1659]
[1765996375925,4.314,2853.4,2852.8,2.19734434]
[1765996375926,2.1338,2853.4,2852.8,2.19734434]
[1765996376338,0.001,2853.9,2852.8,2.19734434]
[1765996376339,3.5050019,2853.9,2853.0,2.1659]
[1765996376541,2.59818023,2853.8,2853.0,2.1659]
[1765996376741,2.1338,2853.4,2852.8,0.03144434]
[1765996377034,2.1338,2853.0,2852.6,0.03144434]
[1765996377259,2.1338,2852.9,2852.6,0.03144434]